Cogmind - Beta 11.1 @@@ ROGUE MODE // 2022.07.15 @ 01:19:18 Player: Sigil Result: Destroyed by S-10 Pest with Light Assault Rifle Performance ------------- Evolutions (2) 1000 Regions Visited (5) 1000 Robots Destroyed (77) 385 Value Destroyed (1849) 1849 Prototype IDs (0) 0 Alien Tech Used (0) 0 Bonus (0) 0 TOTAL SCORE: 4234 Bonus ------- None Cogmind --------- Core Integrity 0/550 Matter 265/300 Energy 67/100 System Corruption 3% Temperature Cool (0) Movement Core (50) Location -8/Materials Parts ------- > --- POWER (1) -------- (None) > --- PROPULSION (4) --- (None) > --- UTILITY (3) ------ (None) > --- WEAPON (3) ------- (None) > --- INVENTORY (5) ---- Medium Matter Pod (100) Large Matter Pod (150) Shock Rifle Shock Bomb Launcher Mining Claw Peak State ------------ > --- POWER ------------ Light Nuclear Core > --- PROPULSION ------- Carbon-fiber Leg Carbon-fiber Leg Carbon-fiber Leg Carbon-fiber Leg > --- UTILITY ---------- Large Storage Unit Improved Sensor Array Improved Signal Interpreter > --- WEAPON ----------- Shock Rifle Shock Rifle Ion Cannon > --- INVENTORY -------- Light Treads Aluminum Leg Medium Matter Pod Large Matter Pod Sensor Array Signal Interpreter Improved Terrain Scanner Weapon Shielding Light Armor Plating Hacking Suite System Shield Shock Bomb Launcher Mini Grenade Launcher Mining Claw Katana [Rating: 33] Favorites ----------- Power Ion Engine Engine Ion Engine Power Core Light Nuclear Core Propulsion Aluminum Leg Treads Light Treads Leg Aluminum Leg Wheel Armored Wheel Flight Unit Flight Unit Utility Large Storage Unit Device Weight Redist. System Storage Large Storage Unit Processor Signal Interpreter Hackware Hacking Suite Protection Light Armor Plating Weapon Light Cannon Energy Gun Shock Rifle Energy Cannon Ion Cannon Ballistic Gun Autogun Ballistic Cannon Light Cannon Launcher Mini Grenade Launcher Slashing Weapon Axe Build | -11 -10 -10 -9 -9 -8 ------- Run | Scr Mat Min Mat Min Mat Slots Evolved 4 | . . . 2 . 2 Power . | . . . . . . Propulsion 2 | . . . 1 . 1 Utility 1 | . . . 1 . . Weapon 1 | . . . . . 1 Parts Attached 66 | 2 8 2 13 4 37 Power 5 | . 1 . 1 . 3 Engine 3 | . 1 . 1 . 1 Core 2 | . . . . . 2 Reactor . | . . . . . . Propulsion 27 | 2 . 2 8 3 12 Treads 5 | 2 . . . . 3 Leg 18 | . . 2 4 3 9 Wheel 2 | . . . 2 . . Hover . | . . . . . . Flight 2 | . . . 2 . . Utility 17 | . 3 . 2 . 12 Device 5 | . . . 1 . 4 Storage 2 | . 1 . 1 . . Processor 3 | . 2 . . . 1 Hackware 2 | . . . . . 2 Protection 5 | . . . . . 5 Artifact . | . . . . . . Weapon 17 | . 4 . 2 1 10 Energy Gun 2 | . . . . . 2 Energy Cannon 2 | . . . . . 2 Ballistic Gun 3 | . 2 . . 1 . Ballistic Cannon 4 | . 2 . 2 . . Launcher 2 | . . . . . 2 Special Weapon . | . . . . . . Impact Weapon . | . . . . . . Slashing Weapon 4 | . . . . . 4 Piercing Weapon . | . . . . . . Special Melee Weapon . | . . . . . . Unidentified Prototypes . | . . . . . . Corrupted Parts 3 | . . . . . 3 System Corruption 3 | . . . . . 3 Parts Lost 28 | . . 4 1 4 19 Power 5 | . . 1 . . 4 Propulsion 13 | . . 2 1 2 8 Utility 3 | . . . . . 3 Weapon 7 | . . 1 . 2 4 Highest Loss Streak 9 | . . 3 1 2 9 To Critical Strikes . | . . . . . . Average Slot Usage (%) 85 | . 82 81 70 96 81 Engine 7 | . 8 9 5 11 3 Treads 7 | . 28 8 . . 3 Leg 20 | . . 17 18 32 22 Device 4 | . . . 8 11 2 Storage 9 | . 10 11 2 11 9 Processor 10 | . 11 14 11 11 9 Protection 1 | . . . . . 4 Energy Gun 2 | . . . . . 7 Energy Cannon 1 | . . . . . 5 Ballistic Gun 4 | . 7 . . 6 . Ballistic Cannon 9 | . 14 19 15 12 . Slashing Weapon 2 | . . . . . 9 Naked Turns 4 | . . . . . 4 Heaviest Build 42 | . 31 31 31 31 42 Greatest Support 60 | 20 40 40 36 36 60 Greatest Overweight (x) 9 | . . 1 3 1 9 Average Overweight (x) . | . . . . . . Largest Inventory Capacity 15 | 5 15 15 15 15 15 Average Capacity 13 | 5 12 12 7 15 14 Most Carried 15 | 5 15 15 7 13 15 Average Carried 11 | 3 10 12 4 10 14 Final Capacity 15 | 5 15 5 15 15 5 Final Carried 15 | 5 15 5 7 13 5 Class Distribution -------------------- 44% | Scavenger-Mutant 42% | Mutant 9% | Tank 3% | Skirmisher Dominant Class ---------------- Mutant | -10/Materials Mutant | -10/Mines Scavenger-Mutant | -9/Materials Scavenger-Mutant | -9/Mines Tank | -8/Materials Resources | -11 -10 -10 -9 -9 -8 ----------- Run | Scr Mat Min Mat Min Mat Matter Collected 1892 | 185 466 33 310 335 563 Remotely . | . . . . . . Salvage Created 2732 | . 566 30 656 296 1184 Parts 137 | . 36 2 26 18 55 Haulers Intercepted 4 | . 1 . 1 . 2 Recyclers Shooed 5 | . . . 1 . 4 Parts Field Recycled . | . . . . . . Retrieved Matter . | . . . . . . Parts Self-Destructed . | . . . . . . Prevented . | . . . . . . Kills | -11 -10 -10 -9 -9 -8 ------- Run | Scr Mat Min Mat Min Mat Combat Hostiles Destroyed 48 | . 12 3 7 9 17 Melee 5 | . . . . . 5 Guns 13 | . 7 . . 2 4 Cannons 25 | . 5 3 7 7 3 AOE 5 | . . . . . 5 Classes Destroyed 11 | . 7 . . . 4 Worker 3 | . . . . . 3 Builder 1 | . . . . . 1 Tunneler 2 | . 1 . . 1 . Hauler 4 | . 1 . 1 . 2 Recycler 11 | . 1 . 5 1 4 Operator 2 | . 1 . . . 1 Watcher 6 | . 2 . 1 . 3 Swarmer 12 | . 3 3 . 3 3 Grunt 33 | . 9 . 7 6 11 Sentry 2 | . . . . . 2 Hunter 1 | . . . . . 1 Best Kill Streak 9 | . 4 3 9 3 8 Combat Bots Only 4 | . 3 3 4 3 3 Max Kills in Single Turn 3 | . 2 2 1 1 3 Gunslinging . | . . . . . . Exploded 2 | . . . . . 2 Melee 1 | . . . . . 1 Uniques/NPCs Destroyed . | . . . . . . Combat | -11 -10 -10 -9 -9 -8 -------- Run | Scr Mat Min Mat Min Mat Damage Taken 3889 | . 344 501 293 387 2364 Core 819 | . 42 167 25 32 553 Absorbed by Shields . | . . . . . . Core Remaining (%) 67 | 100 . 16 . 85 . Volleys Fired 171 | . 56 3 32 32 48 Largest 3 | . 2 2 2 2 3 Hottest 160 | . 70 70 70 70 160 Shots Fired 303 | . 75 6 64 54 104 Gun 130 | . 49 . . 18 63 Cannon 164 | . 26 6 64 36 32 Launcher 9 | . . . . . 9 Special . | . . . . . . Kinetic 207 | . 75 6 64 54 8 Thermal 30 | . . . . . 30 Explosive 9 | . . . . . 9 Electromagnetic 57 | . . . . . 57 Robot Hit Streak 10 | . 7 2 10 9 7 Robot Miss Streak 8 | . 3 1 4 3 8 Penetration Max . | . . . . . . Secondary Targets 1 | . 1 . . . . Max Gunslinging Chain 1 | . 1 . . . . Shots Hit Robots 203 | . 47 3 36 37 80 Core Hits 97 | . 27 3 15 13 39 Critical Kills . | . . . . . . Critical Parts Destroyed . | . . . . . . Critical Strikes 5 | . 1 1 3 . . Blast 5 | . 1 1 3 . . Melee Attacks 42 | . . . . . 42 Impact . | . . . . . . Slashing 42 | . . . . . 42 Piercing . | . . . . . . Sneak Attacks 5 | . . . . . 5 Combat Hostiles . | . . . . . . Follow-up Attacks 4 | . . . . . 4 Damage Inflicted 5007 | . 709 68 657 642 2931 Guns 1423 | . 447 . . 211 765 Cannons 1676 | . 262 68 657 431 258 Explosions 820 | . . . . . 820 Melee 1082 | . . . . . 1082 Ramming 6 | . . . . . 6 Kinetic 2168 | . 709 68 657 642 92 Thermal 389 | . . . . . 389 Explosive 689 | . . . . . 689 Electromagnetic 673 | . . . . . 673 Impact . | . . . . . . Slashing 1082 | . . . . . 1082 Piercing . | . . . . . . Highest Corruption 3 | . . . . . 3 Average Corruption 2 | . . . . . 2 Corruption Purged . | . . . . . . Corruption Blocked . | . . . . . . Effects 11 | . . . . . 11 Message Errors 2 | . . . . . 2 Matter Fused 4 | . . . . . 4 Heat Flow Errors 4 | . . . . . 4 Weapon Failures 1 | . . . . . 1 Overload Shots . | . . . . . . Overflow Damage 211 | . . . . . 211 Projectiles 14 | . . . . . 14 Explosions 74 | . . . . . 74 Melee 123 | . . . . . 123 Knockbacks 18 | . 3 2 6 7 . Impact . | . . . . . . Kinetic 16 | . 3 1 5 7 . Secondary 2 | . . 1 1 . . Self-Inflicted Damage 145 | . . . . . 145 Shots 4 | . . . . . 4 Rammed . | . . . . . . Targets Rammed 1 | . . . . . 1 Kicked 1 | . . . . . 1 Crushed . | . . . . . . Highest Temperature 432 | . 138 18 45 64 432 Average Temperature 115 | . 59 9 13 28 151 Received Heat Transfer 1494 | . 129 . 141 171 1053 Effects 5 | . . . . . 5 Shutdowns 1 | . . . . . 1 Energy Bleed 2 | . . . . . 2 Interference 2 | . . . . . 2 Siege Activations . | . . . . . . Robots Corrupted . | . . . . . . Combat Hostiles . | . . . . . . Parts Fried 3 | . . . . . 3 Impact Corruptions . | . . . . . . Robots Melted . | . . . . . . Combat Hostiles . | . . . . . . Parts Melted . | . . . . . . Heat Transferred 557 | . . . . . 557 Parts Sabotaged . | . . . . . . Parts Stolen . | . . . . . . Parts Stripped . | . . . . . . Power Chain Reactions 2 | . . . . . 2 Missiles Intercepted . | . . . . . . Alert | -11 -10 -10 -9 -9 -8 ------- Run | Scr Mat Min Mat Min Mat Peak Influence 318 | . 318 174 307 274 244 Initial 119 | . . 99 67 119 21 Average 124 | . 185 147 187 97 90 Maximum Alert Level 1 | . 1 . 1 1 1 Low Security (%) 84 | 100 66 100 56 89 93 Level 1 15 | . 33 . 43 10 6 Level 2 . | . . . . . . Level 3 . | . . . . . . Level 4 . | . . . . . . Level 5 . | . . . . . . High Security . | . . . . . . Max Security . | . . . . . . Squads Dispatched 9 | . 2 . 2 . 5 Investigation 1 | . 1 . . . . Extermination . | . . . . . . Reinforcement 5 | . 1 . 2 . 2 Assault . | . . . . . . Garrison 3 | . . . . . 3 Intercept . | . . . . . . Searches Triggered . | . . . . . . Construction Impeded . | . . . . . . Haulers Reinforced . | . . . . . . Active Scanning Responses . | . . . . . . Cargo Convoy Interrupts . | . . . . . . Stealth | -11 -10 -10 -9 -9 -8 --------- Run | Scr Mat Min Mat Min Mat Distress Signals 5 | . . . 2 . 3 Communications Jammed . | . . . . . . Distress Signals . | . . . . . . Times Spotted 89 | . 19 6 16 11 37 Peak Tracking Total 8 | . 3 3 8 3 7 Tactical Retreats 6 | . 1 2 . 1 2 Traps | -11 -10 -10 -9 -9 -8 ------- Run | Scr Mat Min Mat Min Mat Traps Triggered 2 | . 2 . . . . Indirectly . | . . . . . . Trap Hack Attempts . | . . . . . . Triggered . | . . . . . . Disarmed . | . . . . . . Reprogrammed . | . . . . . . Reused . | . . . . . . Traps Extracted . | . . . . . . Installed . | . . . . . . Triggered . | . . . . . . Machines | -11 -10 -10 -9 -9 -8 ---------- Run | Scr Mat Min Mat Min Mat Machines Disabled 1 | . . . 1 . . Max in Single Turn 1 | . . . 1 . . Machines Sabotaged . | . . . . . . Garrisons Compromised . | . . . . . . Overloaded Fab Kills . | . . . . . . Hacking | -11 -10 -10 -9 -9 -8 --------- Run | Scr Mat Min Mat Min Mat Machines Accessed 5 | . 2 . . 2 1 Terminals 5 | . 2 . . 2 1 Fabricators . | . . . . . . Repair Stations . | . . . . . . Recycling Units . | . . . . . . Scanalyzers . | . . . . . . Garrison Access . | . . . . . . Total Hacks 15 | . 5 . . 7 3 Successful 6 | . 2 . . 3 1 Failed 9 | . 3 . . 4 2 Catastrophic 2 | . . . . 2 . Database Lockouts . | . . . . . . Manual 11 | . 5 . . 3 3 Terminals 15 | . 5 . . 7 3 Fabricators . | . . . . . . Repair Stations . | . . . . . . Recycling Units . | . . . . . . Scanalyzers . | . . . . . . Garrison Access . | . . . . . . Terminal Hacks 5 | . 1 . . 3 1 Record 1 | . . . . 1 . Part Schematic 1 | . 1 . . . . Level Access Points 1 | . . . . 1 . Unreport Threat 1 | . . . . . 1 Zone Layout 1 | . . . . 1 . Fabricator Hacks . | . . . . . . Repair Station Hacks . | . . . . . . Recycling Unit Hacks . | . . . . . . Scanalyzer . | . . . . . . Garrison Access Hacks . | . . . . . . Unauthorized Hacks 1 | . 1 . . . . Terminals 1 | . 1 . . . . Operators 1 | . 1 . . . . Fabricators . | . . . . . . Repair Stations . | . . . . . . Recycling Units . | . . . . . . Scanalyzers . | . . . . . . Garrison Access . | . . . . . . Data Cores Recovered . | . . . . . . Used . | . . . . . . Hacking Detections 5 | . 2 . . 2 1 Full Trace Events . | . . . . . . Feedback Events . | . . . . . . Feedback Blocked . | . . . . . . Robot Schematics Acquired . | . . . . . . Robots Built . | . . . . . . Authchips . | . . . . . . Time . | . . . . . . Total Robot Build Rating . | . . . . . . Part Schematics Acquired 1 | . 1 . . . . Parts Built . | . . . . . . Authchips . | . . . . . . Time . | . . . . . . Total Part Build Rating . | . . . . . . Parts Repaired . | . . . . . . Time . | . . . . . . Parts Recycled . | . . . . . . Recycled Matter . | . . . . . . Retrieved Matter . | . . . . . . Retrieved Components . | . . . . . . Parts Scanalyzed . | . . . . . . Part Schematics Acquired . | . . . . . . Parts Damaged . | . . . . . . Bothacking | -11 -10 -10 -9 -9 -8 ------------ Run | Scr Mat Min Mat Min Mat Used RIF Installer . | . . . . . . Robots Hacked . | . . . . . . Non-combat . | . . . . . . Combat . | . . . . . . Robot Hacks Applied . | . . . . . . Relay Couplers Released . | . . . . . . Fabnet Peak Effective % . | . . . . . . Robots Rewired . | . . . . . . Allies Hacked . | . . . . . . Hacks Repelled . | . . . . . . Allies | -11 -10 -10 -9 -9 -8 -------- Run | Scr Mat Min Mat Min Mat Total Allies . | . . . . . . Largest Group . | . . . . . . Highest-Rated Group . | . . . . . . Highest-Rated Ally . | . . . . . . Total Orders . | . . . . . . Ally Attacks . | . . . . . . Total Damage . | . . . . . . Kills . | . . . . . . Allies Corrupted . | . . . . . . Allies Melted . | . . . . . . Intel | -11 -10 -10 -9 -9 -8 ------- Run | Scr Mat Min Mat Min Mat Robot Analysis Total . | . . . . . . Derelict Logs Recovered 2 | . . . . 2 . Drone Launches . | . . . . . . Drone Recoveries . | . . . . . . Exploration | -11 -10 -10 -9 -9 -8 ------------- Run | Scr Mat Min Mat Min Mat Turns Passed 3555 | 38 778 262 278 1088 1111 Spaces Moved 2157 | 55 531 161 175 724 511 Core 306 | 53 232 . 2 . 19 Treads 440 | 2 299 41 . . 98 Legs 1291 | . . 120 53 724 394 Wheels 23 | . . . 23 . . Hover . | . . . . . . Flight 97 | . . . 97 . . Fastest Speed 50 | 50 50 120 50 120 50 Average Speed 121 | 54 111 151 80 120 142 Slowest Speed 500 | 160 160 190 200 190 500 Overloaded Moves . | . . . . . . Propulsion Burnouts . | . . . . . . Robots Hopped 1 | . . . 1 . . Cave-ins Triggered . | . . . . . . Exploration Rate (%) 46 | 4 71 43 21 98 43 Regions Visited 5 Branch Regions 2 Pre-discovered Areas . | . . . . . . Known Exits Taken 4 | . 1 1 1 1 . Unknown Exits Taken 1 | 1 . . . . . Scrap Searched 2 | . . . . 2 . Spaces Dug 10 | . . . . . 10 Terrain Destroyed 98 | . . . . . 98 Melee . | . . . . . . Projectile 10 | . . . . . 10 AOE 88 | . . . . . 88 Terrain Rammed . | . . . . . . Walls Destroyed . | . . . . . . Machines Disabled . | . . . . . . Actions | -11 -10 -10 -9 -9 -8 --------- Run | Scr Mat Min Mat Min Mat Total 2747 | 61 640 174 245 888 739 Wait 256 | . 26 6 18 122 84 Move 2150 | 54 530 160 172 723 511 Hop 1 | . . . 1 . . Pick Up 42 | 5 15 . 5 7 10 Fast Attach 34 | 2 5 . 8 2 17 Attach 16 | . 3 2 4 1 6 Detach 3 | . . 1 . . 2 Swap 16 | . . . 1 1 14 Drop 21 | . 5 2 4 . 10 Fire 171 | . 56 3 32 32 48 Melee 36 | . . . . . 36 Ram . | . . . . . . Kick 1 | . . . . . 1 Crush . | . . . . . . Escape Stasis . | . . . . . . Rewire . | . . . . . . Trap . | . . . . . . Miscellaneous . | . . . . . . Route ------- -11/Scrapyard -10/Materials (discovered 3 exits: *Mat x2 / *Min) -10/Mines -9/Materials -9/Mines (discovered 2 exits: *Mat x2) -8/Materials (discovered 1 exit: *Sto) History --------- Turn | Location | Event 2 | -11/Scrapyard | Met Revision 17 9 | -11/Scrapyard | Discovered new exit (range 15) 39 | -11/Scrapyard | Entered Materials 86 | -10/Materials | Discovered new exit (range 10) 106 | -10/Materials | Discovered new exit (range 13) 220 | -10/Materials | Identified exit to Materials 308 | -10/Materials | Build established: Mutant 467 | -10/Materials | Discovered exit to Materials (range 9) 810 | -10/Materials | Identified exit to Mines 817 | -10/Materials | Entered Mines 959 | -10/Mines | Assembled infested the area 1015 | -10/Mines | Core integrity fell below 50% 1021 | -10/Mines | Core integrity fell below 20% 1054 | -10/Mines | Lost 3 parts (1p1n1w) 1067 | -10/Mines | Discovered exit to Materials (range 8) 1079 | -10/Mines | Entered Materials 1079 | -9/Materials | Evolved 2 slots: Propulsion x1, Utility x1 1134 | -9/Materials | Discovered new exit (range 9) 1294 | -9/Materials | Identified exit to Mines 1357 | -9/Materials | Entered Mines 1495 | -9/Mines | Build established: Scavenger-Mutant 1680 | -9/Mines | Discovered new exit (range 5) 1685 | -9/Mines | Identified exit to Materials 1916 | -9/Mines | Discovered exit to Materials (range 4) 2445 | -9/Mines | Entered Materials 2445 | -8/Materials | Evolved 2 slots: Propulsion x1, Weapon x1 2446 | -8/Materials | Identified exit to Storage 2910 | -8/Materials | Build established: Tank 3064 | -8/Materials | Lost 3 parts (1p1n1w) 3102 | -8/Materials | Garrison activated, responded to threat 3146 | -8/Materials | Core integrity fell below 50% 3167 | -8/Materials | Lost 9 parts (1p4n1u3w) 3316 | -8/Materials | Build established: Mutant 3551 | -8/Materials | Core integrity fell below 20% 3552 | -8/Materials | Released all parts (9) 3556 | -8/Materials | Destroyed by S-10 Pest with Light Assault Rifle Last Messages --------------- 03507_ Imp. Sensor Array destroyed. 03509_ Acquired 34 matter. 03520_ Critical hit (Burn: +37). 03520_ Axe follow-up attack on G-47 Trooper. 03520_ Destroyed Imp. Heat Sink. 03526_ Imp. Ion Engine destroyed. 03526_ Critical hit (Burn: +37). 03526_ G-47 Trooper destroyed. 03530_ Critical hit (Burn: +37). 03532_ Acquired Aluminum Leg. 03546_ Acquired Carbon-fiber Leg. 03550_ Lgt. Treads destroyed. 03552_ Released Carbon-fiber Leg. 03552_ Released Lgt. Treads. 03552_ Released Axe. 03552_ Released Imp. Signal Interpreter. 03552_ Released Axe. 03552_ Released Aluminum Leg. 03552_ Released Hacking Suite. 03552_ Released System Shield. Map ----- +----------------------------------------------------+ | | | ?????????????????????????????????????????????????? | | ?????????????????????????????????????????????????? | | ?????????????????????????????????????????????????? | | ?????????????????????????????????????????????????? | | ?????????????????????????????????????????????????? | | ?????????????????????????????????????????????????? | | ?????????????????????????????????????????????????? | | ?????????????????????????????????????????????????? | | ?????????????????????????????????????????????????? | | ?????????????????????????????????????????????????? | | ?????????????????????????????????????????????????? | | ?????????????????????????????????????????????????? | | ?????????????????????????????????????????????????? | | ?????????????????????????????????????????????????? | | ?????????????????????????????????????????????????? | | ?????????????????????????????????????????????????? | | ?????????????????????????????????????????????????? | | ?????????????????????#######?????????????????????? | | ????????????????###### #?????????????????????? | | ????????????????? #?????????????????????? | | ?????????????????? > #?????????????????????? | | ???????????????????? Y #?????????????????????? | | ?????????????????????#u ??????????????????????? | | ??????????????????????# #??????????????????????? | | ??????????????????##### s@#??????????????????????? | | ??????????????????#[[ #??????????????????????? | | ??????????????????#[[ s ##########+##??????????? | | ??????????????????#** s ?????????? | | ??????????????????#** ??????????? | | ??????????????????#// ??????????? | | ??????????????????#// """ """ """ ????????? | | ???????????######?#####!= """ """ """ ""??????? | | #??????????# #?????#!]/""" """ """ """?????? | | #??????????# #?????#!!!Y ????? | | #??????????# #######/!/ ????? | | #??????????# ## ##!=/ % ????? | | #??????????# ## T ##= ###+####???????? | | #??????????# ## #########% ##??????????????? | | #?????? ??# ## [######### * #???????????????? | | #?????? ??# ## ## #!% #???????????????? | | #?????? ??? ## ## """ # ! #???????????????? | | #?????? ??###+### ## """ # #???????????????? | | #?????? ??# ##+### """ # #???????????????? | | ?????##+#### # # #??#######??????? | | #????# ! + [!!# #?""" ??????? | | ?????# ### # ! [!!# # "T" """???????? | | ?????# #?# #### # [!!# # """ ??????? | | ###### #?###!###??# ######## + """ ??????? | | [ # #####+####?# # # | #?????? | +----------------------------------------------------+ Best States ------------- Heat Dissipation 31 Energy Generation 14 Energy Capacity 265 Matter Stores 300 Matter Capacity 300 Sight Range 18 Robot Scan Range 15 Terrain Scan Density 10 Additional Mass Support 6 Armor Coverage 150 Evasion (%) 60 Recoil Reduction 2 Item Schematics ----------------- Hcp. Storage Unit | -10/Materials | Hacked Robot Schematics ------------------ None Fabricated ------------ Nothing Alien Tech Used ----------------- None Achievements -------------- None Challenges ------------ None Game ------ Seed SingularityCompactWarhead Manual? 0 Play Time 00:34:38 Cumulative 75.9 hours Start 2022.07.15 @ 00:47:39 End 2022.07.15 @ 01:19:18 Sessions 1 Manual Loads 0 Difficulty Rogue Special Mode None Game No. 62 Rogue 62 Adventurer 0 Explorer 0 Win Type - Total 1 Types 0/0/1/0/0/0/0/0/0 Lore% 48 Gallery% 58 Achievement% 49 Wizard Run 0 Options --------- ASCII 0 Keyboard 0 Movement Numpad Keybinds 0 Fullscreen 1 Font 36/Smallcaps Map View 76x50 Tactical HUD 1 Map Filters NONE Filters NONE Steam 1 RUN: a6059fce-1610-4b14-abb6-6cb0afe086c3